Cogmind - Beta 10.1 @@@ ROGUE MODE // 2020.10.12 @ 19:42:05 Player: yeehaw Result: Destroyed by G-34 Mercenary with Small Laser Performance ------------- Evolutions (0) 0 Regions Visited (1) 200 Robots Destroyed (7) 35 Value Destroyed (185) 185 Prototype IDs (0) 0 Alien Tech Used (0) 0 Bonus (0) 0 TOTAL SCORE: 420 Bonus ------- None Cogmind --------- Core Integrity 0/250 Matter 290/300 Energy 207/250 System Corruption 0% Temperature Cool (6) Movement Core (200) Ox3 Location -10/Materials Parts ------- > --- POWER (1) -------- Ion Engine > --- PROPULSION (2) --- (None) > --- UTILITY (2) ------ Heat Sink Small Storage Unit > --- WEAPON (2) ------- Small Laser > --- INVENTORY (6) ---- (None) Peak State ------------ > --- POWER ------------ Ion Engine > --- PROPULSION ------- Light Treads > --- UTILITY ---------- Small Storage Unit > --- WEAPON ----------- Medium Laser Assault Rifle > --- INVENTORY -------- Ion Engine [Rating: 5] Favorites ----------- Power Ion Engine Engine Ion Engine Propulsion Light Treads Treads Light Treads Leg Aluminum Leg Utility Small Storage Unit Device Heat Sink Storage Small Storage Unit Weapon Medium Laser Energy Gun Medium Laser Ballistic Gun Assault Rifle Build | -11 -10 ------- Run | Scr Mat Slots Evolved . | . . Power . | . . Propulsion . | . . Utility . | . . Weapon . | . . Parts Attached 14 | 5 9 Power 3 | 1 2 Engine 3 | 1 2 Core . | . . Reactor . | . . Propulsion 3 | 1 2 Treads 1 | 1 . Leg 2 | . 2 Wheel . | . . Hover . | . . Flight . | . . Utility 2 | 1 1 Device 1 | . 1 Storage 1 | 1 . Processor . | . . Hackware . | . . Protection . | . . Artifact . | . . Weapon 6 | 2 4 Energy Gun 4 | 1 3 Energy Cannon . | . . Ballistic Gun 2 | 1 1 Ballistic Cannon . | . . Launcher . | . . Special Weapon . | . . Impact Weapon . | . . Slashing Weapon . | . . Piercing Weapon . | . . Special Melee Weapon . | . . Unidentified Prototypes . | . . Parts Lost 10 | . 10 Power 2 | . 2 Propulsion 3 | . 3 Utility . | . . Weapon 5 | . 5 Highest Loss Streak 9 | . 9 Average Slot Usage (%) 64 | . 64 Engine 14 | . 14 Treads 11 | . 11 Leg 4 | . 4 Device 1 | . 1 Storage 14 | . 14 Energy Gun 8 | . 8 Ballistic Gun 10 | . 10 Naked Turns . | . . Heaviest Build 13 | 13 13 Greatest Support 20 | 20 20 Greatest Overweight (x) 3 | 2 3 Average Overweight (x) . | . . Largest Inventory Capacity 6 | 6 6 Average Capacity 5 | 5 6 Most Carried 4 | 3 4 Average Carried 2 | 1 2 Final Capacity 6 | 6 6 Final Carried 3 | 3 . Class Distribution -------------------- 100% | Mutant Dominant Class ---------------- Mutant | -10/Materials Resources | -11 -10 ----------- Run | Scr Mat Matter Collected 334 | 215 119 Remotely . | . . Salvage Created 219 | . 219 Parts 12 | . 12 Haulers Intercepted . | . . Recyclers Shooed . | . . Parts Field Recycled . | . . Retrieved Matter . | . . Parts Self-Destructed . | . . Prevented . | . . Kills | -11 -10 ------- Run | Scr Mat Combat Hostiles Destroyed 6 | . 6 Guns 6 | . 6 Classes Destroyed 3 | . 3 Operator 1 | . 1 Swarmer 2 | . 2 Grunt 4 | . 4 Best Kill Streak 3 | . 3 Combat Bots Only 2 | . 2 Max Kills in Single Turn 1 | . 1 Gunslinging . | . . Exploded . | . . Melee . | . . Uniques/NPCs Destroyed . | . . Combat | -11 -10 -------- Run | Scr Mat Damage Taken 1048 | . 1048 Core 252 | . 252 Absorbed by Shields . | . . Core Remaining (%) 100 | 100 . Volleys Fired 36 | . 36 Largest 2 | . 2 Hottest 70 | . 70 Shots Fired 52 | . 52 Gun 52 | . 52 Cannon . | . . Launcher . | . . Special . | . . Kinetic 30 | . 30 Thermal 22 | . 22 Explosive . | . . Electromagnetic . | . . Robot Hit Streak 8 | . 8 Robot Miss Streak 5 | . 5 Penetration Max . | . . Secondary Targets 1 | . 1 Max Gunslinging Chain 1 | . 1 Shots Hit Robots 27 | . 27 Core Hits 14 | . 14 Critical Hits 1 | . 1 Critical Kills . | . . Critical Parts Destroyed 1 | . 1 Melee Attacks . | . . Impact . | . . Slashing . | . . Piercing . | . . Sneak Attacks . | . . Combat Hostiles . | . . Follow-up Attacks . | . . Damage Inflicted 326 | . 326 Guns 324 | . 324 Cannons . | . . Explosions . | . . Melee . | . . Ramming 2 | . 2 Kinetic 162 | . 162 Thermal 162 | . 162 Explosive . | . . Electromagnetic . | . . Impact . | . . Slashing . | . . Piercing . | . . Highest Corruption . | . . Average Corruption . | . . Corruption Purged . | . . Overload Shots . | . . Overflow Damage . | . . Projectiles . | . . Explosions . | . . Melee . | . . Knockbacks . | . . Impact . | . . Kinetic . | . . Secondary . | . . Self-Inflicted Damage . | . . Shots . | . . Rammed 1 | . 1 Targets Rammed 1 | . 1 Kicked . | . . Crushed . | . . Highest Temperature 111 | . 111 Average Temperature 37 | . 37 Received Heat Transfer 432 | . 432 Siege Activations . | . . Robots Corrupted . | . . Combat Hostiles . | . . Parts Fried . | . . Impact Corruptions . | . . Robots Melted . | . . Combat Hostiles . | . . Parts Melted . | . . Heat Transferred 469 | . 469 Parts Sabotaged . | . . Parts Stolen . | . . Parts Stripped . | . . Power Chain Reactions . | . . Missiles Intercepted . | . . Alert | -11 -10 ------- Run | Scr Mat Peak Influence 75 | . 75 Initial . | . . Average 31 | . 41 Maximum Alert Level . | . . Low Security (%) 100 | 100 100 Level 1 . | . . Level 2 . | . . Level 3 . | . . Level 4 . | . . Level 5 . | . . High Security . | . . Max Security . | . . Squads Dispatched . | . . Investigation . | . . Extermination . | . . Reinforcement . | . . Assault . | . . Garrison . | . . Intercept . | . . Construction Impeded . | . . Haulers Reinforced . | . . Stealth | -11 -10 --------- Run | Scr Mat Distress Signals 1 | . 1 Communications Jammed . | . . Distress Signals . | . . Times Spotted 15 | . 15 Peak Tracking Total 6 | . 6 Tactical Retreats 4 | . 4 Traps | -11 -10 ------- Run | Scr Mat Traps Triggered . | . . Indirectly . | . . Trap Hack Attempts . | . . Triggered . | . . Disarmed . | . . Reprogrammed . | . . Reused . | . . Traps Extracted . | . . Installed . | . . Triggered . | . . Machines | -11 -10 ---------- Run | Scr Mat Machines Disabled . | . . Max in Single Turn . | . . Machines Sabotaged . | . . Garrisons Compromised . | . . Overloaded Fab Kills . | . . Fab Network Shutdowns . | . . Hacking | -11 -10 --------- Run | Scr Mat Machines Accessed . | . . Terminals . | . . Fabricators . | . . Repair Stations . | . . Recycling Units . | . . Scanalyzers . | . . Garrison Access . | . . Total Hacks . | . . Successful . | . . Failed . | . . Catastrophic . | . . Database Lockouts . | . . Manual . | . . Terminals . | . . Fabricators . | . . Repair Stations . | . . Recycling Units . | . . Scanalyzers . | . . Garrison Access . | . . Terminal Hacks . | . . Fabricator Hacks . | . . Repair Station Hacks . | . . Recycling Unit Hacks . | . . Scanalyzer . | . . Garrison Access Hacks . | . . Unauthorized Hacks . | . . Terminals . | . . Fabricators . | . . Repair Stations . | . . Recycling Units . | . . Scanalyzers . | . . Garrison Access . | . . Data Cores Recovered . | . . Used . | . . Hacking Detections . | . . Full Trace Events . | . . Feedback Events . | . . Feedback Blocked . | . . Robot Schematics Acquired . | . . Robots Built . | . . Matter . | . . Time . | . . Total Robot Build Rating . | . . Part Schematics Acquired . | . . Parts Built . | . . Matter . | . . Time . | . . Total Part Build Rating . | . . Parts Repaired . | . . Time . | . . Parts Recycled . | . . Recycled Matter . | . . Retrieved Matter . | . . Retrieved Components . | . . Parts Scanalyzed . | . . Part Schematics Acquired . | . . Parts Damaged . | . . Bothacking | -11 -10 ------------ Run | Scr Mat Used RIF Installer . | . . Robots Hacked . | . . Non-combat . | . . Combat . | . . Robot Hacks Applied . | . . Relay Couplers Released . | . . Robots Rewired . | . . Allies Hacked . | . . Hacks Repelled . | . . Allies | -11 -10 -------- Run | Scr Mat Total Allies . | . . Largest Group . | . . Highest-Rated Group . | . . Highest-Rated Ally . | . . Total Orders . | . . Ally Attacks . | . . Total Damage . | . . Kills . | . . Allies Corrupted . | . . Allies Melted . | . . Intel | -11 -10 ------- Run | Scr Mat Robot Analysis Total . | . . Derelict Logs Recovered . | . . Drone Launches . | . . Drone Recoveries . | . . Exploration | -11 -10 ------------- Run | Scr Mat Turns Passed 267 | 64 203 Spaces Moved 104 | 35 69 Core 12 | 10 2 Treads 72 | 25 47 Legs 20 | . 20 Wheels . | . . Hover . | . . Flight . | . . Fastest Speed 50 | 50 120 Average Speed 146 | 140 149 Slowest Speed 200 | 160 200 Overloaded Moves . | . . Propulsion Burnouts . | . . Robots Hopped . | . . Cave-ins Triggered . | . . Exploration Rate (%) 11 | 4 18 Regions Visited 1 Branch Regions . Pre-discovered Areas . | . . Known Exits Taken . | . . Unknown Exits Taken 1 | 1 . Scrap Searched . | . . Spaces Dug . | . . Terrain Destroyed . | . . Melee . | . . Projectile . | . . AOE . | . . Terrain Rammed . | . . Walls Destroyed . | . . Machines Disabled . | . . Actions | -11 -10 --------- Run | Scr Mat Total 172 | 51 121 Wait . | . . Move 103 | 34 69 Hop . | . . Pick Up 16 | 10 6 Fast Attach . | . . Attach 14 | 5 9 Detach . | . . Swap . | . . Drop 2 | 2 . Fire 36 | . 36 Melee . | . . Ram . | . . Kick . | . . Crush 1 | . 1 Escape Stasis . | . . Rewire . | . . Trap . | . . Miscellaneous . | . . Route ------- -11/Scrapyard -10/Materials (discovered 1 exit: [*Min]) History --------- Turn | Location | Event 19 | -11/Scrapyard | Discovered new exit (range 16) 65 | -11/Scrapyard | Entered Materials 65 | -10/Materials | Discovered new exit (range 14) 233 | -10/Materials | Core integrity fell below 50% 260 | -10/Materials | Core integrity fell below 20% 268 | -10/Materials | Destroyed by G-34 Mercenary with Small Laser Last Messages --------------- 00244_ K-01 Serf collects debris. 00244_ Ion Engine destroyed. 00245_ Acquired 36 matter. 00247_ Acquired 10 matter. 00247_ Aluminum Leg destroyed. 00248_ Acquired 5 matter. 00248_ K-01 Serf collects debris. 00248_ Acquired 5 matter. 00250_ K-01 Serf collects debris. 00253_ K-01 Serf cleans the Terminal. 00253_ K-01 Serf collects debris. 00261_ Aluminum Leg destroyed. 00261_ K-01 Serf collects debris. 00263_ U-05 Engineer lays Concrete. 00263_ K-01 Serf collects debris. 00265_ Acquired Sml. Laser. 00265_ U-05 Engineer lays Concrete. 00266_ K-01 Serf collects debris. 00267_ S-10 Pest destroyed. 00268_ K-01 Serf collects debris. Map ----- +----------------------------------------------------+ | | | ?????????????????????????????????????????????????? | | ?????????????????????????????????????????????????? | | ?????????????????????????????????????????????????? | | ?????????????????????????????????????????????????? | | ?????????????????????????????????????????????????? | | ???????????????????????????????????????##????????? | | ??????????????????????????????????????? +????????? | | ??????????????????????????????????????? #????????? | | ??????????????????????????????????????? #????????? | | ?????????????????????# ???????????????? #????????? | | ?????????????????????# ???????#+#????? #????????? | | ?????????????????????k ???????# #????# #????????? | | ?????????????????????# ??????# #????# #????????? | | ?????????????????????# ####### ###### #????????? | | ?????????????????????# #????????? | | ?????????????????????# k!= #????????? | | ?????????????????????# "" !! g = % +????????? | | ?????????????????????# "T !! " * %#????????? | | ?????????????????????# "" !! g """ ==#????????? | | ?????????????????????# ^ %^"" = #????????? | | ?????????????????????# ! = """ #??????### | | ?????????????????????# ^ " #??????# | | ?????????????????????# ^ """ #??????# | | ?????????????????##### w%| """ #??????# | | ??????????????# /=|@u """ #??????# | | ??????????????# *$| " ######## | | ??????????????# !![ %! %= = | | ??????????????+ !! = ######## | | ??????????????# ![ k ##??????# | | ??????????????# ##############u#???????# | | ??????????????# = ?????????????# #???????# | | ??????????????# ?????????????# #???????# | | ??????????????# ?????????????#+#???????# | | ??????????????####### ?????????????? ????????# | | ???????????????????? ?????????????? ????????# | | ???????????????????# ?????????????? ???????? | | ???????????????????# ??????????????? ????????? | | ???????????????????# ??????????????? ????????? < | | ????????????????????? ??????????????? ????????? | | ????????????????????????????????????? ????????? | | ???????????????????????????????????????????????##+ | | ?????????????????????????????????????????????????? | | ?????????????????????????????????????????????????? | | ?????????????????????????????????????????????????? | | ?????????????????????????????????????????????????? | | ?????????????????????????????????????????????????? | | ?????????????????????????????????????????????????? | | ?????????????????????????????????????????????????? | | ?????????????????????????????????????????????????? | +----------------------------------------------------+ Best States ------------- Heat Dissipation 35 Energy Generation 10 Energy Capacity 250 Matter Stores 300 Matter Capacity 300 Sight Range 16 Terrain Scan Density 10 Evasion (%) 40 Recoil Reduction 1 Item Schematics ----------------- None Robot Schematics ------------------ None Fabricated ------------ Nothing Alien Tech Used ----------------- None Achievements -------------- None Challenges ------------ None Game ------ Seed DecoyAlloyNullifier Manual? 0 Play Time 00:06:33 Cumulative 4.0 hours Start 2020.10.12 @ 19:34:24 End 2020.10.12 @ 19:42:05 Sessions 1 Manual Loads 0 Difficulty Rogue Special Mode None Game No. 5 Rogue 5 Adventurer 0 Explorer 0 Win Type - Total 0 Types 0/0/0/0/0/0/0/0/0 Lore% 1 Gallery% 12 Achievement% 9 Wizard Run 0 Options --------- ASCII 1 Keyboard 0 Movement Mouse Keybinds 0 Fullscreen 2 Font 18/TerminusBold Map View 76x50 Tactical HUD 1 Map Filters NONE Filters NONE Steam 1 RUN: 93bc0885-0d43-42fa-9bf6-0caf4746da16